bitfinex/quotes_ETHUSD_20251124
["timestamp","ask_amount","ask_price","bid_price","bid_amount"]
[1763960810728,0.4733,2850.7,2849.9,0.1]
[1763960810729,0.4733,2850.7,2850.2,0.09999999]
[1763960811255,0.4733,2850.7,2850.4,0.09999999]
[1763960811643,0.4733,2850.7,2850.0,0.09999999]
[1763960812061,0.4733,2850.7,2849.4,0.4733]
[1763960812062,0.7063,2850.7,2849.8,0.09999999]
[1763960812356,0.1874,2849.9,2849.3,0.09999999]
[1763960812528,0.1874,2849.9,2848.9,0.4733]
[1763960812854,0.4733,2849.8,2849.1,0.09999999]
[1763960813221,0.4733,2849.8,2848.7,0.4733]
[1763960813444,0.4733,2849.8,2848.7,0.1]
[1763960813644,0.4733,2849.8,2849.3,0.09999999]
[1763960814056,0.7063,2849.8,2849.3,0.09999999]
[1763960814359,0.4733,2849.8,2849.3,0.09999999]
[1763960814558,0.4733,2849.7,2849.3,0.09999999]
[1763960814723,0.4733,2849.7,2848.9,0.09999999]
[1763960815057,0.4733,2849.7,2849.2,0.09999999]
[1763960815233,0.4733,2849.7,2848.4,0.2435]
[1763960815561,0.4733,2849.7,2848.4,0.1]
[1763960815863,0.1874,2848.5,2848.2,0.4733]
[1763960816060,0.1874,2848.5,2848.3,0.09999999]
[1763960816525,0.4733,2848.4,2848.3,0.09999999]
[1763960816955,0.4733,2848.4,2847.6,0.1]
[1763960817157,0.4733,2848.4,2848.0,0.09999999]
[1763960817462,0.4733,2848.4,2846.5,0.3903]
[1763960817760,0.1874,2847.5,2847.4,0.09999999]
[1763960818126,0.6607,2847.5,2847.4,0.09999999]
[1763960818328,0.1874,2847.5,2847.4,0.09999999]
[1763960818723,0.4194,2847.8,2847.4,0.09999999]
[1763960819021,0.4194,2847.8,2847.1,0.1032]
[1763960819022,0.1874,2847.8,2847.6,0.09999999]
[1763960819346,0.4733,2847.7,2847.6,0.09999999]
[1763960819551,0.1874,2847.8,2847.6,0.09999999]
[1763960819753,0.6607,2847.8,2847.6,0.09999999]
[1763960820127,0.1874,2848.5,2847.9,0.09999999]
[1763960820128,0.4733,2848.3,2847.9,0.09999999]
[1763960820562,0.1874,2849.9,2849.4,0.09999999]
[1763960820862,0.002,2850.4,2849.9,0.09999999]
[1763960820863,0.1874,2850.3,2849.9,0.09999999]
[1763960821067,0.1874,2850.3,2850.1,0.09999999]
[1763960821361,0.002,2850.4,2850.1,0.09999999]
[1763960821563,0.4733,2850.3,2850.1,0.09999999]
[1763960821796,0.002,2850.4,2850.3,0.09999999]
[1763960822258,0.4753,2850.4,2849.3,0.1]
[1763960822431,0.4753,2850.4,2849.7,0.09999999]
[1763960822831,0.1874,2849.8,2849.4,0.09999999]
[1763960823042,0.1874,2849.8,2849.1,0.09999999]
[1763960823260,0.1874,2849.8,2849.5,0.09999999]
[1763960823680,0.4733,2849.7,2849.5,0.09999999]
[1763960823976,0.002,2850.4,2850.0,0.09999999]
[1763960824262,0.002,2850.4,2850.1,0.1]
[1763960824428,0.002,2850.4,2850.1,0.09999999]
[1763960824429,0.4733,2850.3,2850.1,0.09999999]
[1763960824863,0.002,2850.4,2850.1,0.09999999]
[1763960825037,0.002,2850.4,2849.4,0.09999999]
[1763960825038,0.4733,2850.2,2849.4,0.09999999]
[1763960825238,0.4733,2850.2,2849.2,0.1]
[1763960825462,0.4733,2850.2,2849.8,0.09999999]
[1763960825683,0.4733,2850.2,2849.2,0.1]
[1763960825684,0.4733,2850.2,2848.7,0.3903]
[1763960825852,0.4733,2850.2,2848.9,0.1]
[1763960826181,0.4733,2850.2,2849.8,0.09999999]
[1763960826548,0.1874,2849.9,2849.6,0.09999999]
[1763960826969,0.6378,2849.9,2849.5,0.09999999]
[1763960827168,0.6378,2849.9,2849.3,1.83068867]
[1763960827388,0.4504,2849.8,2849.0,1.83068867]
[1763960827550,0.4504,2849.8,2849.3,0.09999999]
[1763960827745,0.4504,2849.8,2849.5,0.09999999]
[1763960828097,0.4194,2849.9,2849.5,0.09999999]
[1763960828394,0.002,2850.4,2849.5,0.09999999]
[1763960828395,0.002,2850.4,2850.3,0.19999999]
[1763960828682,0.4504,2851.7,2851.3,0.09999999]
[1763960828854,0.4504,2851.7,2851.6,1.83909487]
[1763960829052,0.4504,2851.7,2851.5,1.83909487]
[1763960829281,0.4504,2852.2,2851.3,2.4521265]
[1763960829495,0.4504,2851.9,2851.7,1.84145167]
[1763960829802,0.4504,2851.9,2851.6,1.84145167]
[1763960830108,0.1849,2852.9,2852.3,0.09999999]
[1763960830259,0.6353,2852.9,2852.2,2.4558766]
[1763960830595,0.6353,2852.9,2851.8,2.4558766]
[1763960830798,0.6353,2852.9,2851.2,4.42871225]
[1763960830799,0.4504,2852.8,2852.0,0.09999999]
[1763960830968,0.4504,2852.8,2851.8,0.09999999]
[1763960831170,0.4504,2852.8,2851.5,2.55587659]
[1763960831380,0.233,2852.7,2851.3,0.09999999]
[1763960831758,0.4504,2852.6,2851.3,0.09999999]
[1763960832254,0.233,2852.5,2851.1,0.1]
[1763960832585,0.233,2852.5,2851.7,0.09999999]
[1763960832785,0.233,2852.5,2851.3,2.4558766]
[1763960832786,0.4504,2852.4,2851.5,0.1]
[1763960832964,0.4504,2852.4,2851.3,2.4558766]
[1763960832965,0.4504,2852.4,2851.7,0.09999999]
[1763960833294,0.233,2852.3,2851.3,2.5558766]
[1763960833598,0.233,2852.3,2851.8,0.09999999]
[1763960833798,0.4504,2852.2,2851.6,0.09999999]
[1763960833953,0.002,2852.0,2851.4,0.09999999]
[1763960834153,0.002,2852.0,2851.7,0.09999999]
[1763960834355,0.1849,2851.9,2851.4,0.09999999]
[1763960834654,0.1849,2851.9,2851.7,0.09999999]
[1763960835352,0.4504,2851.8,2850.7,2.5558766]
[1763960835580,0.4504,2851.8,2851.6,0.09999999]
[1763960835948,0.1849,2851.9,2851.6,0.09999999]
[1763960836150,0.4504,2853.5,2852.8,0.09999999]
[1763960836377,0.4504,2853.5,2853.2,0.09999999]
[1763960836905,0.1849,2853.7,2853.2,0.09999999]
[1763960837112,0.1849,2853.7,2853.1,0.09999999]
[1763960837268,0.4504,2853.6,2852.9,0.09999999]
[1763960837597,0.4504,2853.6,2851.9,4.36245077]
[1763960837598,0.4504,2853.6,2852.5,0.1]
[1763960837800,0.233,2853.5,2852.6,0.09999999]
[1763960838000,0.233,2853.5,2852.0,2.8461766]
[1763960838001,0.233,2853.5,2852.5,0.1]
[1763960838299,0.4504,2853.4,2852.8,0.09999999]
[1763960838502,0.1849,2855.2,2852.0,2.8461766]
[1763960838503,0.1849,2854.9,2853.4,0.09999999]
[1763960838703,0.4504,2854.8,2854.2,0.09999999]
[1763960839014,0.4504,2854.8,2853.3,0.09999999]
[1763960839216,0.4504,2854.8,2853.9,0.09999999]
[1763960839370,2.103745,2854.7,2853.0,0.1]
[1763960839566,0.2554145,2854.6,2853.3,0.09999999]
[1763960839907,2.534924,2854.6,2853.7,0.09999999]
[1763960840119,0.4504,2854.5,2853.7,0.09999999]
[1763960840469,0.4504,2854.5,2853.3,0.19999999]
[1763960840670,0.234,2854.4,2853.4,0.09999999]
[1763960840902,0.234,2854.4,2853.1,0.09999999]
[1763960841093,0.4504,2854.3,2853.6,0.09999999]
[1763960841292,0.4504,2854.3,2853.2,0.09999999]
[1763960841945,0.04,2858.5,2856.9,0.1287]
[1763960842217,0.4504,2860.6,2859.4,0.09999999]
[1763960842405,0.4504,2860.2,2859.4,0.09999999]
[1763960842590,0.1849,2859.9,2859.4,0.09999999]
[1763960842912,0.4299,2859.9,2859.4,0.09999999]
[1763960843134,0.45436038,2859.5,2859.4,0.09999999]
[1763960843472,0.00396038,2859.5,2859.4,0.09999999]
[1763960844026,0.00396038,2859.5,2859.4,8.1868666]
[1763960844232,0.00396038,2859.5,2859.4,7.98686661]
[1763960844416,0.00396038,2859.5,2859.4,1.47829263]
[1763960844711,0.00396038,2859.5,2859.4,1.57829263]
[1763960844922,0.4504,2861.6,2860.7,0.09999999]
[1763960845089,0.4504,2861.6,2860.9,0.09999999]
[1763960845489,0.4504,2861.6,2860.4,0.09999999]
[1763960845690,0.4504,2861.6,2861.0,0.09999999]
[1763960845893,0.4289,2862.0,2860.0,0.6]
[1763960845894,0.1849,2862.0,2861.5,0.09999999]
[1763960846106,0.1849,2862.0,2861.6,0.09999999]
[1763960846528,0.6353,2862.0,2861.1,0.09999999]
[1763960846675,6.556679,2861.9,2860.0,0.1287]
[1763960847031,4.740263,2861.7,2860.0,0.1287]
[1763960847234,0.7191979,2861.8,2860.2,0.09999999]
[1763960847235,0.90699264,2861.5,2860.2,0.09999999]
[1763960847520,0.244,2861.6,2860.2,0.09999999]
[1763960847675,0.6944,2861.5,2860.2,0.09999999]
[1763960848011,4.196627,2861.4,2860.6,0.09999999]
[1763960848189,0.9395027,2861.3,2860.2,0.09999999]
[1763960848515,0.9395027,2861.3,2859.4,0.4713]
[1763960848516,2.362503,2861.2,2859.4,0.1]
[1763960848680,0.6353,2861.2,2860.3,0.09999999]
[1763960848882,0.1849,2861.2,2860.8,0.09999999]
[1763960849181,0.1849,2862.0,2860.8,0.09999999]
[1763960849515,0.6353,2862.0,2861.9,0.09999999]
[1763960849689,0.8803,2862.0,2861.3,0.1]
[1763960850014,0.8803,2862.0,2860.6,0.4713]
[1763960850188,0.8803,2862.0,2861.5,0.09999999]
[1763960850390,0.4299,2862.0,2861.7,0.09999999]
[1763960850603,0.4504,2861.9,2861.1,0.1]
[1763960850806,0.1849,2862.7,2861.9,0.09999999]
[1763960851115,0.4299,2862.7,2862.0,0.09999999]
[1763960851280,0.8803,2862.7,2861.9,0.09999999]
[1763960851476,0.8803,2862.7,2860.9,0.1287]
[1763960851477,4.446239,2862.6,2861.2,0.1]
[1763960851682,0.5326539,2862.5,2861.0,0.1]
[1763960851882,2.051656,2862.4,2861.0,0.1]
[1763960852221,0.4504,2862.5,2860.9,0.1287]
[1763960852389,0.4504,2862.4,2861.3,0.1]
[1763960852593,0.4504,2862.4,2860.9,0.1287]
[1763960853123,0.244,2862.3,2860.9,0.1287]
[1763960853280,0.244,2862.3,2861.9,0.09999999]
[1763960853615,0.244,2862.3,2860.5,0.4713]
[1763960853616,0.4504,2862.2,2861.0,0.1]
[1763960853835,0.4504,2862.2,2860.5,0.4713]
[1763960854011,0.244,2862.1,2861.4,0.09999999]
[1763960854183,0.4504,2862.1,2861.9,0.09999999]
[1763960854382,0.244,2862.0,2861.9,0.09999999]
[1763960854601,0.244,2862.0,2860.9,0.1287]
[1763960854887,0.1849,2861.0,2860.8,0.09999999]
[1763960855105,0.1849,2861.0,2858.7,7.51556661]
[1763960855106,0.244,2860.9,2860.2,0.09999999]
[1763960855316,0.6944,2860.9,2859.1,0.1]
[1763960855630,6.19532,2860.6,2859.4,0.09999999]
[1763960855854,0.619532,2860.5,2859.8,0.09999999]
[1763960855992,5.669622,2860.5,2859.5,0.09999999]
[1763960856187,5.669622,2860.5,2858.0,0.1589]
[1763960856188,3.306502,2860.3,2858.1,0.4713]
[1763960856390,0.4504,2860.4,2859.6,0.09999999]
[1763960856618,0.90699264,2860.8,2859.4,0.09999999]
[1763960856619,2.324926,2860.2,2859.4,0.09999999]
[1763960856799,0.2775326,2860.1,2858.6,0.1]
[1763960856987,0.4858,2860.2,2858.4,0.1]
[1763960857203,0.90699264,2860.2,2858.1,0.1]
[1763960857402,11.283629,2860.3,2858.2,0.1]
[1763960857403,4.156481,2859.9,2858.2,0.1]
[1763960857722,4.156481,2859.9,2858.0,0.1589]
[1763960857723,7.948722,2859.8,2858.1,0.1]
[1763960857918,7.948722,2859.8,2857.7,0.4914]
[1763960857919,4.920917,2859.7,2857.9,0.1]
[1763960858114,2.272917,2859.5,2857.6,0.1]
[1763960858424,0.5406717,2859.6,2856.0,1.20204828]
[1763960858425,10.479337,2859.2,2857.3,0.1]
[1763960858611,0.189,2859.4,2856.8,0.5264042]
[1763960858787,2.142281,2859.1,2858.3,0.09999999]
[1763960858992,0.30492736,2859.0,2857.9,0.09999999]
[1763960859230,0.4858,2859.3,2858.3,0.09999999]
[1763960859454,7.605624,2859.0,2858.3,0.09999999]
[1763960859613,0.189,2858.4,2858.3,0.09999999]
[1763960859925,0.4858,2859.1,2858.3,0.09999999]
[1763960860326,0.4858,2859.1,2857.4,0.1]
[1763960860512,2.57202,2859.0,2857.4,0.1]
[1763960860716,0.305782,2858.9,2856.9,0.4914]
[1763960860916,0.4858,2858.8,2857.5,0.09999999]
[1763960861229,0.4858,2858.8,2857.4,0.09999999]
[1763960861230,0.90699264,2858.6,2857.4,0.09999999]
[1763960861414,11.042166,2858.7,2857.4,0.09999999]
[1763960861615,11.042166,2858.7,2856.1,0.4914]
[1763960861616,0.189,2857.5,2857.2,0.09999999]
[1763960861932,0.189,2857.5,2856.2,0.1287]
[1763960861933,0.189,2857.5,2857.3,0.09999999]
[1763960862125,0.6748,2857.5,2856.8,0.09999999]
[1763960862335,0.6748,2857.5,2857.0,0.09999999]
[1763960862336,0.189,2857.5,2857.0,0.09999999]
[1763960862637,0.90699264,2857.3,2855.7,0.09999999]
[1763960862934,0.90699264,2857.3,2855.9,0.09999999]
[1763960862935,2.307039,2857.0,2855.9,0.09999999]
[1763960863089,2.218039,2857.0,2855.9,0.09999999]
[1763960863312,0.7288,2856.9,2856.3,0.09999999]
[1763960863832,0.4858,2856.8,2856.3,0.09999999]
[1763960864016,0.244,2856.7,2856.3,0.09999999]
[1763960864212,0.4917,2857.4,2856.3,0.09999999]
[1763960864450,0.243,2857.3,2856.6,0.09999999]
[1763960864827,0.4917,2857.2,2856.6,0.09999999]
[1763960865339,0.243,2857.1,2856.6,0.09999999]
[1763960865554,7.51556661,2858.6,2856.9,0.09999999]
[1763960865728,0.243,2857.4,2857.3,0.09999999]
[1763960866228,0.7347,2857.4,2857.3,0.09999999]
[1763960866418,0.4917,2857.4,2857.3,0.09999999]
[1763960866618,0.7347,2857.4,2857.3,0.09999999]
[1763960866856,0.7347,2857.4,2856.8,0.09999999]
[1763960867018,0.4917,2857.3,2857.1,0.09999999]
[1763960867217,0.4917,2857.3,2856.9,0.09999999]
[1763960867443,0.4917,2857.3,2855.7,1.35094828]
[1763960867444,0.4917,2857.3,2857.1,0.09999999]
[1763960867624,0.243,2857.2,2857.1,0.09999999]
[1763960868144,0.7347,2857.2,2857.1,0.09999999]
[1763960868535,0.7347,2857.2,2856.8,0.09999999]
[1763960868734,0.4917,2857.1,2856.8,0.09999999]
[1763960870862,2.414804,2857.0,2856.4,0.09999999]
[1763960871061,0.4917,2857.1,2856.1,0.09999999]
[1763960871062,0.2906504,2856.9,2856.1,0.09999999]
[1763960871279,0.243,2857.2,2855.8,0.09999999]
[1763960871280,0.4917,2856.8,2855.8,0.09999999]
[1763960871684,3.02105,2856.7,2855.2,1.81785974]
[1763960872003,0.4917,2856.8,2855.8,0.09999999]
[1763960872143,0.1898,2856.9,2855.1,0.6194]
[1763960872144,0.243,2856.6,2856.0,0.09999999]
[1763960872552,0.4917,2856.5,2856.0,0.09999999]
[1763960873143,0.242,2856.4,2855.6,0.09999999]
[1763960873447,0.242,2856.4,2856.0,0.09999999]
[1763960873670,0.4917,2856.3,2856.0,0.09999999]
[1763960873869,0.242,2856.2,2856.0,0.09999999]
[1763960874378,0.7337,2856.2,2856.0,0.09999999]
[1763960874778,0.7337,2856.1,2856.0,0.09999999]
[1763960875287,0.7337,2856.1,2855.7,0.09999999]
[1763960875582,0.4917,2856.1,2855.9,0.09999999]
[1763960875744,0.242,2856.0,2855.6,0.09999999]
[1763960876280,0.7337,2856.0,2855.6,0.09999999]
[1763960876663,0.7337,2856.0,2855.9,0.09999999]
[1763960877072,0.1898,2862.0,2858.1,0.05]
[1763960877257,0.1898,2862.0,2856.4,1.75496718]
[1763960877258,0.4917,2861.6,2860.3,0.1751]
[1763960877457,0.249,2861.1,2860.3,0.09999999]
[1763960877976,0.6815,2861.8,2860.3,0.57049999]
[1763960878148,0.1898,2862.4,2861.6,0.09999999]
[1763960878393,0.1898,2865.7,2860.3,0.4705]
[1763960878394,0.4917,2862.9,2862.3,0.09999999]
[1763960878633,0.249,2863.1,2863.0,0.09999999]
[1763960878790,0.4917,2863.6,2863.0,0.09999999]
[1763960878991,0.4917,2863.6,2863.1,0.09999999]
[1763960879195,0.249,2863.6,2862.9,0.09999999]
[1763960879442,0.249,2863.6,2863.4,0.09999999]
[1763960879643,0.1898,2864.4,2863.8,0.09999999]
[1763960879925,0.1898,2865.7,2864.4,0.09999999]
[1763960879926,0.1898,2865.1,2864.4,0.09999999]
[1763960880128,4.063316,2864.9,2863.4,0.1]
[1763960880312,0.9229316,2864.8,2863.4,0.1]
[1763960880513,0.4917,2864.8,2864.1,0.09999999]
[1763960880714,0.1898,2865.1,2864.0,0.09999999]
[1763960880937,0.249,2864.7,2864.0,0.09999999]
[1763960881108,0.249,2864.7,2863.9,0.09999999]
[1763960881307,0.249,2864.7,2862.4,0.90699264]
[1763960881308,0.4917,2864.6,2864.0,0.09999999]
[1763960881830,2.902559,2864.4,2862.7,0.1]
[1763960882051,0.4917,2864.6,2862.7,0.1]
[1763960882052,2.355559,2864.2,2862.7,0.1]
[1763960882256,2.113081,2864.2,2862.7,0.1]
[1763960882464,4.97683,2864.0,2862.5,0.4705]
[1763960882643,4.66193,2864.0,2862.5,0.4705]
[1763960882951,0.2902559,2864.3,2862.5,0.4705]
[1763960882952,0.2902559,2864.3,2863.9,0.09999999]
[1763960883154,0.4917,2863.9,2862.1,0.5705]
[1763960883333,0.1898,2863.8,2863.6,0.09999999]
[1763960883654,0.4917,2863.7,2863.6,0.09999999]
[1763960883839,0.4917,2863.7,2862.4,0.4705]
[1763960884041,0.4917,2863.7,2862.4,0.5705]
[1763960884233,0.4917,2863.7,2862.5,0.1]
[1763960884557,0.4917,2863.7,2862.2,0.2751]
[1763960885053,0.4917,2863.7,2863.1,0.09999999]
[1763960885259,0.1898,2864.0,2862.2,0.2751]
[1763960885559,3.53841536,2866.7,2862.2,0.2751]
[1763960885560,17.3069,2868.0,2863.6,0.1751]
[1763960885774,17.3069,2868.0,2864.3,0.09999999]
[1763960885775,3.898179,2865.6,2864.3,0.09999999]
[1763960885948,6.58570964,2865.4,2864.6,0.09999999]
[1763960886119,4.984648,2865.3,2864.0,0.09999999]
[1763960886319,1.0902979,2865.5,2863.6,0.1751]
[1763960886320,0.4917,2865.2,2864.6,0.09999999]
[1763960887424,2.180011,2865.1,2864.4,0.09999999]
[1763960887636,0.2671711,2865.0,2864.4,0.09999999]
[1763960887933,2.295078,2865.1,2864.5,0.09999999]
[1763960888134,2.431406,2865.0,2864.5,0.09999999]
[1763960888344,0.4737,2865.1,2864.5,0.09999999]
[1763960888856,2.102496,2865.0,2864.5,0.09999999]
[1763960889056,0.2576196,2864.9,2864.5,0.09999999]
[1763960889257,0.4737,2865.1,2864.2,0.09999999]
[1763960889465,2.03079,2864.9,2864.5,0.09999999]
[1763960889676,0.6635,2865.5,2864.6,0.09999999]
[1763960890028,0.90699264,2865.3,2864.6,0.09999999]
[1763960890225,2.64631,2864.6,2863.7,0.09999999]
[1763960890562,2.64631,2864.6,2861.0,2.4558766]
[1763960890563,0.4737,2865.3,2864.6,0.09999999]
[1763960890741,3.921496,2865.2,2864.6,0.09999999]
[1763960891237,1.09679264,2865.5,2864.6,0.09999999]
[1763960891238,4.415039,2865.1,2864.6,0.09999999]
[1763960891458,0.4737,2865.1,2864.9,0.09999999]
[1763960891630,0.6635,2865.5,2864.9,0.09999999]
[1763960891829,2.865596,2865.4,2864.9,0.09999999]
[1763960892127,0.3529096,2865.3,2864.9,0.09999999]
[1763960892327,0.1898,2865.5,2864.9,0.09999999]
[1763960892627,0.4737,2865.4,2864.9,0.09999999]
[1763960892824,0.1898,2865.5,2865.1,0.09999999]
[1763960893289,0.1898,2865.5,2863.8,0.1751]
[1763960893290,0.002,2865.6,2865.3,0.09999999]
[1763960893962,0.002,2865.6,2865.5,0.09999999]
[1763960894739,5.111118,2865.5,2864.0,0.1]
[1763960894942,4.61052,2865.3,2864.0,0.1]
[1763960895143,4.61052,2865.3,2863.8,0.2751]
[1763960895342,0.4737,2865.2,2863.8,0.2751]
[1763960895568,3.82452,2865.1,2863.8,0.1751]
[1763960895768,3.82452,2865.1,2863.1,6.14110767]
[1763960895769,3.43152,2864.9,2863.2,0.4921]
[1763960895938,2.001003,2864.7,2864.1,0.09999999]
[1763960896138,0.4737,2864.8,2864.2,0.09999999]
[1763960896338,1.09679264,2865.7,2864.5,0.09999999]
[1763960896657,2.043858,2865.0,2864.5,0.09999999]
[1763960896830,2.648498,2864.8,2864.5,0.09999999]
[1763960897085,2.399516,2864.8,2864.5,0.09999999]
[1763960897409,0.4737,2864.8,2864.5,0.09999999]
[1763960897807,3.557065,2864.7,2864.5,0.09999999]
[1763960898007,4.530362,2864.7,2864.0,0.09999999]
[1763960898194,3.556919,2864.5,2863.5,0.09999999]
[1763960898400,3.108972,2864.5,2864.0,0.09999999]
[1763960898597,2.17353,2864.4,2864.0,0.09999999]
[1763960898906,0.4737,2864.4,2864.0,0.09999999]
[1763960899124,0.90699264,2865.0,2864.0,0.09999999]
[1763960899279,0.4737,2864.3,2864.0,0.09999999]
[1763960899676,0.6722,2864.3,2864.0,0.09999999]
[1763960899877,0.4737,2865.2,2865.0,0.09999999]
[1763960900374,0.4737,2866.1,2865.3,0.09999999]
[1763960900839,0.4737,2866.1,2865.4,0.09999999]
[1763960901116,0.4737,2866.2,2865.4,0.09999999]
[1763960901811,0.4757,2865.6,2865.4,0.09999999]
[1763960902200,0.002,2865.6,2865.4,0.09999999]
[1763960903116,0.002,2865.6,2865.5,6.14110767]
[1763960903279,0.4737,2867.1,2865.5,6.14110767]
[1763960903280,0.1985,2867.7,2865.5,6.24110767]
[1763960903483,3.4866429,2868.1,2867.4,0.09999999]
[1763960903484,0.1985,2867.6,2867.4,0.09999999]
[1763960903891,0.6722,2867.6,2867.4,0.09999999]
[1763960904090,0.6722,2867.6,2867.2,0.09999999]
[1763960904295,2.97122,2867.5,2865.8,1.39909264]
[1763960904493,0.4737,2867.5,2867.4,0.09999999]
[1763960904692,0.1985,2868.8,2867.8,0.09999999]
[1763960904898,4.314538,2868.5,2867.8,0.09999999]
[1763960905130,2.170076,2868.3,2867.8,0.09999999]
[1763960905315,3.09549,2868.3,2867.8,0.09999999]
[1763960905485,0.1985,2867.9,2867.8,0.09999999]
[1763960905687,0.4737,2868.5,2868.0,0.09999999]
[1763960905905,0.4737,2868.5,2868.2,0.09999999]
[1763960906113,0.00533637,2869.0,2868.6,0.09999999]
[1763960906114,4.366891,2868.9,2868.6,0.09999999]
[1763960906322,0.4737,2868.8,2868.6,0.09999999]
[1763960906521,0.00533637,2869.0,2868.6,0.09999999]
[1763960906821,0.00533637,2869.0,2868.8,0.09999999]
[1763960907033,0.00533637,2869.0,2867.0,1.08209264]
[1763960907034,7.380632,2868.9,2868.4,0.09999999]
[1763960907187,6.375472,2868.9,2867.9,0.09999999]
[1763960907387,3.808708,2868.7,2868.2,0.09999999]
[1763960907595,2.591831,2868.7,2868.2,0.09999999]
[1763960907831,3.422787,2868.9,2868.4,0.09999999]
[1763960908031,0.00533637,2869.0,2868.6,0.09999999]
[1763960908522,4.335395,2868.8,2868.6,0.09999999]
[1763960908706,4.335395,2868.8,2867.0,7.22320031]
[1763960908707,0.4809095,2868.7,2867.4,0.1]
[1763960908910,0.4737,2868.8,2867.4,0.1]
[1763960909223,2.889846,2868.8,2868.7,0.09999999]
[1763960909523,2.889846,2868.8,2867.2,0.4921]
[1763960909524,0.4737,2868.8,2867.2,0.4921]
[1763960909728,0.4737,2868.8,2868.4,0.09999999]
[1763960909928,0.4737,2868.8,2867.2,0.4921]
[1763960910121,3.538375,2868.9,2868.7,0.09999999]
[1763960910634,0.4737,2868.8,2868.3,0.09999999]
[1763960910829,0.4737,2868.8,2867.8,0.1]
[1763960911032,0.4737,2868.8,2867.3,0.4921]
[1763960911033,0.4737,2868.8,2868.2,0.09999999]
[1763960911238,0.4737,2868.8,2868.3,0.09999999]
[1763960911587,0.4737,2868.8,2868.7,0.09999999]
[1763960911789,2.978775,2868.8,2868.0,0.09999999]
[1763960911994,2.852906,2868.6,2868.1,0.09999999]
[1763960912218,0.2978775,2868.7,2868.3,0.09999999]
[1763960912417,0.4737,2868.6,2868.3,0.09999999]
[1763960912759,0.4737,2868.6,2867.0,0.1751]
[1763960912760,0.00733637,2869.0,2868.9,0.09999999]
[1763960912932,0.1985,2871.0,2868.9,0.27509999]
[1763960913257,4.678763,2870.9,2869.8,0.1]
[1763960913552,0.5350963,2870.8,2870.6,0.09999999]
[1763960913729,0.4737,2870.8,2870.6,0.09999999]
[1763960914129,0.17485901,2873.5,2869.8,0.1731]
[1763960914130,0.6722,2872.1,2871.0,0.09999999]
[1763960914326,0.6722,2872.1,2871.6,0.09999999]
[1763960914531,0.1985,2872.1,2871.6,0.09999999]
[1763960914738,0.4737,2872.4,2871.8,0.09999999]
[1763960914937,0.1985,2872.5,2872.0,0.09999999]
[1763960915149,0.4737,2872.4,2872.0,0.09999999]
[1763960915951,0.4737,2872.4,2871.8,0.09999999]
[1763960916321,2.705765,2872.3,2871.8,0.09999999]
[1763960916653,0.3179465,2872.2,2871.6,0.09999999]
[1763960916818,0.4876,2873.0,2872.0,0.09999999]
[1763960917023,4.887092,2872.9,2872.0,0.09999999]
[1763960917219,2.357763,2872.9,2872.4,0.09999999]
[1763960917444,6.137904,2872.7,2871.6,0.09999999]
[1763960917750,4.27459,2872.5,2871.6,0.09999999]
[1763960917966,3.938081,2872.5,2872.2,0.09999999]
[1763960918269,4.632029,2872.3,2872.2,0.09999999]
[1763960918422,4.632029,2872.3,2870.8,0.6576]
[1763960918423,4.632029,2872.3,2871.7,0.09999999]
[1763960918622,0.4876,2872.3,2872.2,0.09999999]
[1763960919234,6.512859,2872.2,2871.6,0.09999999]
[1763960919558,0.90699264,2871.6,2871.1,0.09999999]
[1763960919855,0.90699264,2872.0,2871.1,0.09999999]
[1763960920167,0.90699264,2871.8,2871.1,0.09999999]
[1763960920324,0.4876,2871.9,2871.1,0.09999999]
[1763960920523,0.90699264,2872.3,2871.1,0.09999999]
[1763960920524,0.90699264,2871.6,2871.1,0.09999999]
[1763960920828,7.87025696,2872.3,2869.8,6.31420767]
[1763960920829,0.4876,2872.0,2871.4,0.09999999]
[1763960921215,10.065077,2871.7,2871.4,0.09999999]
[1763960921423,10.065077,2871.7,2870.0,0.4825]
[1763960921424,13.447536,2871.6,2870.0,0.4825]
[1763960921726,0.90699264,2871.1,2870.5,0.09999999]
[1763960922061,0.90699264,2870.8,2869.8,0.09999999]
[1763960922235,0.90699264,2870.8,2867.7,0.1731]
[1763960922236,0.6762,2871.0,2870.5,0.09999999]
[1763960922557,0.90699264,2872.8,2870.8,0.09999999]
[1763960922558,8.72503,2871.2,2870.8,0.09999999]
[1763960922766,0.1886,2871.3,2870.9,0.09999999]
[1763960922933,0.1886,2871.3,2871.2,0.09999999]
[1763960923119,0.90699264,2872.1,2871.2,0.09999999]
[1763960923325,0.1886,2872.6,2869.8,6.14110767]
[1763960923326,0.1886,2871.7,2871.4,0.09999999]
[1763960923730,0.6762,2871.7,2871.4,0.09999999]
[1763960924125,0.1886,2872.0,2871.4,0.09999999]
[1763960924452,0.1886,2872.0,2870.6,0.4825]
[1763960924453,0.1886,2872.0,2871.6,0.09999999]
[1763960924954,0.4991,2871.9,2871.6,0.09999999]
[1763960925356,0.4991,2871.9,2871.7,0.09999999]
[1763960925522,0.1886,2872.6,2871.7,0.09999999]
[1763960925852,0.4991,2872.5,2871.9,0.09999999]
[1763960926053,0.4991,2872.5,2872.2,0.09999999]
[1763960926823,9.504529,2872.4,2871.7,0.09999999]
[1763960927025,1.34849258,2872.3,2872.0,0.09999999]
[1763960927237,0.1886,2872.6,2872.0,0.09999999]
[1763960927431,2.04158,2872.4,2872.0,0.09999999]
[1763960927638,2.874489,2872.4,2872.0,0.09999999]
[1763960927958,9.031661,2872.2,2872.0,0.09999999]
[1763960928160,1.4521761,2872.1,2872.0,0.09999999]
[1763960928333,0.4991,2872.1,2872.0,0.09999999]
[1763960928764,5.988065,2872.5,2872.0,0.09999999]
[1763960928936,0.4991,2872.1,2872.0,0.09999999]
[1763960929751,2.757259,2872.3,2872.0,0.09999999]
[1763960930066,0.4991,2872.4,2872.0,0.09999999]
[1763960930067,3.411648,2872.1,2872.0,0.09999999]
[1763960930246,3.910748,2872.1,2872.0,0.09999999]